bitfinex-derivatives/quotes_ETHF0:USTF0_20240818
["timestamp","ask_amount","ask_price","bid_price","bid_amount"]
[1723996405305,14.91882335,2674.3,2674.2,0.00369414]
[1723996405503,9.91882335,2674.3,2674.2,0.00369414]
[1723996408107,8.04963335,2674.3,2674.2,0.00369414]
[1723996409515,2.96519857,2674.4,2674.2,0.00369414]
[1723996409516,0.00359857,2674.4,2674.2,0.00369414]
[1723996409711,0.00359857,2674.4,2674.3,1.86919]
[1723996409909,0.00359857,2674.4,2674.3,2.23149]
[1723996410114,0.00359857,2674.4,2674.3,0.711]
[1723996410713,0.00359857,2674.4,2674.2,0.00369414]
[1723996410714,1.86919,2674.3,2674.2,0.00369414]
[1723996412919,0.00359857,2674.4,2674.2,0.00369414]
[1723996413127,0.00359857,2674.4,2674.3,1.86919]
[1723996413416,0.00359857,2674.4,2674.2,1.87293414]
[1723996415821,1.87274857,2674.4,2674.2,0.00369414]
[1723996416316,1.86919,2674.3,2674.2,0.00369414]
[1723996416524,2.23606857,2674.4,2674.2,0.00369414]
[1723996417221,1.86919,2674.3,2674.2,0.00369414]
[1723996418822,0.00359857,2674.4,2674.2,0.00369414]
[1723996419020,1.87274857,2674.4,2674.2,1.87292414]
[1723996419228,1.87272857,2674.4,2674.2,1.87292414]
[1723996421016,5.08052857,2674.4,2674.2,1.87292414]
[1723996421230,3.21139857,2674.4,2674.2,1.87292414]
[1723996421617,5.08052857,2674.4,2674.2,1.87292414]
[1723996421932,5.08052857,2674.4,2674.2,0.00369414]
[1723996422229,5.08052857,2674.4,2674.2,1.87293414]
[1723996422425,5.08052857,2674.4,2674.2,0.00369414]
[1723996422813,0.3569,2674.3,2674.2,0.00369414]
[1723996423021,0.3569,2674.3,2674.2,1.87295414]
[1723996423624,0.7104,2674.3,2674.2,1.87295414]
[1723996425327,0.3535,2674.3,2674.2,1.87295414]
[1723996427729,0.00359857,2674.4,2674.3,1.86919]
[1723996430634,0.00359857,2674.4,2674.2,1.87291414]
[1723996431527,0.00359857,2674.4,2674.3,1.86919]
[1723996432635,0.94659857,2674.4,2674.3,2.23709]
[1723996438332,2.89832974,2674.4,2674.3,2.23709]
[1723996439033,0.94659857,2674.4,2674.3,2.23709]
[1723996439235,2.89832974,2674.4,2674.3,2.23709]
[1723996440432,2.90413097,2674.4,2674.2,1.87292414]
[1723996440632,1.95759469,2674.3,2674.2,1.87292414]
[1723996441037,1.95759469,2674.3,2674.2,2.24442414]
[1723996441838,2.90059469,2674.3,2674.2,2.24442414]
[1723996442337,3.38424335,2674.3,2674.2,2.24442414]
[1723996443242,3.38424335,2674.3,2674.2,1.87292414]
[1723996443634,5.25343335,2674.3,2674.2,0.00369414]
[1723996443940,3.38424335,2674.3,2674.2,1.87295414]
[1723996444342,3.38424335,2674.3,2674.2,2.21125414]
[1723996445332,0.943,2674.3,2674.2,2.21125414]
[1723996446841,2.81219,2674.3,2674.2,2.21125414]
[1723996447038,2.81219,2674.3,2674.2,1.87295414]
[1723996447835,2.8122,2674.3,2674.2,1.87295414]
[1723996448036,0.943,2674.3,2674.2,1.87295414]
[1723996450744,3.39440502,2674.3,2674.2,1.87295414]
[1723996451842,2.45140502,2674.3,2674.2,1.87295414]
[1723996453437,0.94659857,2674.4,2674.3,1.8692]
[1723996455844,4.68579857,2674.4,2674.2,0.00369414]
[1723996456151,0.943,2674.3,2674.2,2.24486414]
[1723996456541,2.81574857,2674.4,2674.2,2.24486414]
[1723996458136,2.81574857,2674.4,2674.3,1.86919]
[1723996458945,2.81574857,2674.4,2674.2,2.24481414]
[1723996460236,2.81574857,2674.4,2674.3,1.8692]
[1723996460644,0.00359857,2674.4,2674.3,1.8692]
[1723996465458,1.87274857,2674.4,2674.2,2.24483414]
[1723996465755,6.5514,2674.3,2674.2,0.00369414]
[1723996466055,4.6822,2674.3,2674.2,0.00369414]
[1723996466247,6.5514,2674.3,2674.2,0.00369414]
[1723996466949,6.5514,2674.3,2674.2,1.87296414]
[1723996467155,6.5514,2674.3,2674.2,0.00369414]
[1723996469557,2.8122,2674.3,2674.2,1.87296414]
[1723996470156,0.943,2674.3,2674.2,1.87296414]
[1723996471261,2.8122,2674.3,2674.2,1.87296414]
[1723996472158,0.943,2674.3,2674.2,1.87296414]
[1723996473658,0.943,2674.3,2674.2,0.00369414]
[1723996473659,2.8122,2674.3,2674.2,0.00369414]
[1723996474253,2.8122,2674.3,2674.2,1.87296414]
[1723996474960,2.8122,2674.3,2674.2,0.00369414]
[1723996476059,6.5514,2674.3,2674.2,0.00369414]
[1723996476363,11.35009202,2674.3,2674.2,0.00369414]
[1723996476860,3.73868,2674.1,2674.0,0.00560905]
[1723996477169,11.32454019,2674.1,2674.0,0.00560905]
[1723996477363,11.32454019,2674.1,2673.5,1.86973]
[1723996477364,1.86962,2673.7,2673.5,1.86973]
[1723996477668,4.10515526,2673.6,2673.5,1.86973]
[1723996477860,4.10515526,2673.6,2673.5,1.87245611]
[1723996478551,1.653,2673.6,2673.5,1.87245611]
[1723996478961,1.2964,2673.6,2673.5,1.87245611]
[1723996480167,3.16609,2673.6,2673.5,0.00272611]
[1723996480565,5.97464526,2673.6,2673.5,0.00272611]
[1723996480866,3.52249,2673.6,2673.5,0.00272611]
[1723996482063,9.13218,2673.6,2673.5,0.00272611]
[1723996483268,12.07476632,2673.6,2673.5,0.00272611]
[1723996483463,1.86983,2673.4,2673.3,0.00560905]
[1723996483661,5.25985875,2673.4,2673.3,0.00560905]
[1723996483965,5.25985875,2673.4,2672.9,0.7059]
[1723996483966,1.87003,2673.2,2672.9,0.7059]
[1723996484164,1.2872,2673.1,2672.9,0.7059]
[1723996484468,1.2872,2673.1,2672.9,0.71029788]
[1723996485069,1.2872,2673.1,2673.0,1.87011]
[1723996485462,3.82753714,2673.3,2673.0,1.87011]
[1723996485664,0.943,2673.1,2673.0,1.87011]
[1723996488672,2.81304,2673.1,2673.0,1.87011]
[1723996489664,0.943,2673.1,2673.0,1.87011]
[1723996489862,2.81304,2673.1,2673.0,1.87011]
[1723996492365,2.81304,2673.1,2672.9,2.58043788]
[1723996492674,0.943,2673.0,2672.9,2.58043788]
[1723996501500,2.81311,2673.0,2672.9,0.00439788]
[1723996503299,6.55391,2673.0,2672.9,0.00439788]
[1723996504408,8.42402,2673.0,2672.9,0.00439788]
[1723996504610,8.42402,2673.0,2672.7,0.00377473]
[1723996504611,1.87025,2672.8,2672.7,0.00377473]
[1723996504818,2.81325,2672.8,2672.7,0.00377473]
[1723996505003,4.6846,2672.8,2672.7,0.00377473]
[1723996505401,3.2078,2672.9,2672.8,1.87025]
[1723996505601,1.95761714,2673.1,2672.9,1.87015]
[1723996505806,1.95761714,2673.1,2673.0,0.3551]
[1723996506110,5.61084,2673.1,2673.0,0.3551]
[1723996506698,1.87004,2673.1,2673.0,0.3551]
[1723996507308,2.22341905,2673.2,2673.0,0.3551]
[1723996507608,0.943,2673.1,2673.0,0.3551]
[1723996507805,2.81304,2673.1,2673.0,0.3551]
[1723996508512,0.943,2673.1,2673.0,0.3551]
[1723996509313,0.943,2673.1,2673.0,2.22521]
[1723996509611,0.35340905,2673.2,2673.0,2.22521]
[1723996509798,0.943,2673.1,2673.0,0.3551]
[1723996510001,0.943,2673.1,2673.0,2.22516]
[1723996512598,0.943,2673.1,2673.0,0.3551]
[1723996512800,0.943,2673.1,2673.0,2.22521]
[1723996515117,0.943,2673.1,2673.0,5.96601]
[1723996518510,0.943,2673.1,2673.0,2.22521]
[1723996521515,0.943,2673.1,2673.0,5.96601]
[1723996521918,1.95942583,2673.2,2673.1,1.87004]
[1723996522113,0.94860905,2673.2,2673.1,5.97174]
[1723996522437,2.90242583,2673.2,2673.1,5.97174]
[1723996522618,0.94860905,2673.2,2673.1,5.97174]
[1723996523015,2.90832316,2673.2,2673.1,5.97174]
[1723996523317,0.94860905,2673.2,2673.1,5.97174]
[1723996523613,0.94860905,2673.2,2673.0,0.3551]
[1723996523614,3.39088003,2673.2,2673.0,0.3551]
[1723996523816,3.39088003,2673.2,2673.0,2.22516]
[1723996523817,4.31231098,2673.1,2673.0,2.22516]
[1723996524020,2.81227098,2673.1,2673.0,2.22516]
[1723996524615,0.37,2673.1,2673.0,2.22516]
[1723996524818,2.81227098,2673.1,2673.0,2.22516]
[1723996525213,0.37,2673.1,2673.0,2.22516]
[1723996525722,2.81227098,2673.1,2673.0,2.22516]
[1723996527120,1.87012,2673.0,2672.9,1.87016]
[1723996527320,3.38527098,2673.0,2672.9,1.87016]
[1723996527624,3.38527098,2673.0,2672.9,2.23946]
[1723996528513,3.39607311,2673.0,2672.9,2.23946]
[1723996528915,2.81311,2673.0,2672.9,0.3693]
[1723996529625,1.87018,2672.9,2672.8,0.35116827]
[1723996529823,4.32329839,2672.9,2672.8,0.35116827]
[1723996530029,2.45311839,2672.9,2672.8,0.35116827]
[1723996530332,2.45311839,2672.9,2672.8,2.22141827]
[1723996531122,2.45311839,2672.9,2672.8,0.70656827]
[1723996531424,4.32329839,2672.9,2672.8,0.70656827]
[1723996531727,4.32329839,2672.9,2672.8,0.00486827]
[1723996531728,5.61178,2672.9,2672.8,0.00486827]
[1723996531919,5.95828,2672.9,2672.8,0.00486827]
[1723996532116,7.82846,2672.9,2672.8,0.00486827]
[1723996532419,10.75918518,2672.9,2672.8,0.00486827]
[1723996534224,5.61185,2672.8,2672.3,0.3437]
[1723996534425,5.26562391,2672.5,2672.3,0.3437]
[1723996534721,4.32265391,2672.4,2672.3,0.3437]
[1723996534924,4.68835391,2672.4,2672.3,0.3437]
[1723996535313,4.6926649,2672.4,2672.3,0.34650297]
[1723996535522,2.8221349,2672.4,2672.3,0.34650297]
[1723996536223,4.6926649,2672.4,2672.3,0.34650297]
[1723996536630,2.8221349,2672.4,2672.3,0.34650297]
[1723996536929,0.37001099,2672.4,2672.3,0.34650297]
[1723996537426,2.24054099,2672.4,2672.3,0.34650297]
[1723996537928,8.4350649,2672.4,2672.3,0.00280297]
[1723996538832,4.11241099,2672.4,2672.3,0.00280297]
[1723996540429,1.96312299,2672.4,2672.3,0.00280297]
[1723996541231,1.96277901,2672.4,2672.3,0.00280297]
[1723996541634,3.83330901,2672.4,2672.3,0.00280297]
[1723996542026,1.87484099,2672.4,2672.3,0.00280297]
[1723996542226,3.83301236,2672.4,2672.3,0.00280297]
[1723996543240,1.87484099,2672.4,2672.3,0.00280297]
[1723996544119,5.61724099,2672.4,2672.3,0.00280297]
[1723996544326,1.8707,2672.2,2672.0,0.732]
[1723996544630,0.943,2672.1,2672.0,0.732]
[1723996545339,0.943,2672.1,2672.0,0.7366563]
[1723996546433,0.943,2672.1,2672.0,2.6074663]
[1723996546730,0.943,2672.1,2672.0,0.0046563]
[1723996546731,5.26586391,2672.1,2672.0,0.0046563]
[1723996546936,5.95646391,2672.1,2672.0,0.0046563]
[1723996547235,3.50434,2672.1,2672.0,0.0046563]
[1723996547634,5.95646391,2672.1,2672.0,0.0046563]
[1723996549229,3.50434,2672.1,2672.0,0.0046563]
[1723996549538,4.76900016,2672.1,2672.0,0.0046563]
[1723996556127,6.63974016,2672.1,2672.0,0.0046563]
[1723996556327,4.76900016,2672.1,2672.0,0.0046563]
[1723996556529,6.63974016,2672.1,2672.0,0.0046563]
[1723996556723,4.76900016,2672.1,2672.0,0.0046563]
[1723996556930,6.63974016,2672.1,2672.0,0.0046563]
[1723996557633,1.87102,2671.7,2671.6,0.3644]
[1723996558536,0.943,2671.7,2671.6,5.98326192]
[1723996563530,0.943,2671.8,2671.7,1.87103]
[1723996563730,3.2078,2671.9,2671.7,1.87103]
[1723996563731,3.2078,2671.9,2671.7,8.18166]
[1723996563926,4.19563115,2672.4,2671.8,3.7424]
[1723996563927,0.943,2672.0,2671.8,3.7424]
[1723996564138,0.943,2672.0,2671.9,1.87088]
[1723996564533,0.943,2672.0,2671.9,5.61328]
[1723996566737,0.943,2672.0,2671.9,1.87088]
[1723996567243,0.943,2672.0,2671.9,5.61328]
[1723996567437,0.943,2672.0,2671.9,1.87088]
[1723996567638,2.81381,2672.0,2671.9,1.87088]
[1723996568445,0.943,2672.0,2671.9,1.87088]
[1723996569840,2.81381,2672.0,2671.9,1.87088]
[1723996570052,1.87092,2671.9,2671.7,0.6964]
[1723996570339,3.2078,2672.1,2671.7,0.3594]
[1723996570340,2.81395,2671.8,2671.7,0.3594]
[1723996570735,0.943,2671.8,2671.7,2.23042]
[1723996570932,2.81395,2671.8,2671.7,0.3594]
[1723996571340,2.81395,2671.8,2671.7,2.23042]
[1723996571945,2.81395,2671.8,2671.7,0.3594]
[1723996574341,0.943,2671.8,2671.7,2.23042]
[1723996574536,5.16306016,2672.1,2671.7,9.1026]
[1723996574855,0.943,2672.2,2672.1,1.87074]
[1723996576155,2.89826016,2672.2,2672.1,1.87074]
[1723996576340,1.2988,2672.2,2672.1,1.87074]
[1723996576749,3.25406016,2672.2,2672.1,1.87074]
[1723996576954,1.2988,2672.2,2672.1,1.87074]
[1723996577141,3.25406016,2672.2,2672.1,1.87074]
[1723996581465,1.2988,2672.2,2672.1,1.87074]
[1723996582252,3.25863909,2672.2,2672.1,1.87074]
[1723996582552,1.2988,2672.2,2672.1,1.87074]
[1723996582754,1.2988,2672.2,2671.9,0.3453]
[1723996582954,0.943,2672.0,2671.9,2.21618]
[1723996583349,0.943,2672.0,2671.9,5.95858]
[1723996583548,0.943,2672.0,2671.9,0.3453]
[1723996583749,3.15851,2672.0,2671.9,0.3453]
[1723996584255,1.87095,2671.8,2671.6,1.87563192]
[1723996584464,1.96044521,2671.8,2671.7,1.87102]
[1723996584651,1.96044521,2671.9,2671.8,1.87095]
[1723996584955,2.90344521,2671.9,2671.8,1.87095]
[1723996585161,4.77432521,2671.9,2671.8,1.87095]
[1723996585358,0.943,2671.9,2671.8,1.87095]
[1723996585861,0.943,2671.9,2671.8,5.61335]
[1723996586360,1.96049144,2672.0,2671.9,1.87088]
[1723996586572,0.943,2672.0,2671.9,0.7079]
[1723996586866,0.943,2672.0,2671.9,6.32118]
[1723996587163,0.943,2672.0,2671.9,8.19206]
[1723996588068,1.96049144,2672.2,2672.1,1.87074]
[1723996588366,2.90349144,2672.2,2672.1,1.87074]
[1723996589554,0.943,2672.2,2672.1,1.87074]
[1723996589754,2.90349144,2672.2,2672.1,1.87074]
[1723996591557,0.943,2672.2,2672.1,1.87074]
[1723996593165,2.90316922,2672.2,2672.1,7.48388]
[1723996593483,0.00431099,2672.4,2672.3,3.7412]
[1723996593665,0.00431099,2672.4,2672.3,1.8706]
[1723996593862,0.00431099,2672.4,2672.3,5.613]
[1723996594063,0.94731099,2672.4,2672.3,6.3414]
[1723996598972,0.94731099,2672.4,2672.3,2.2398]
[1723996600268,2.81784099,2672.4,2672.3,0.3692]
[1723996600468,0.94731099,2672.4,2672.3,2.2398]
[1723996603062,0.00431099,2672.4,2672.3,2.2398]
[1723996603259,0.94731099,2672.4,2672.3,1.8706]
[1723996603475,0.94731099,2672.4,2671.8,3.50153832]
[1723996603476,1.87064,2672.3,2672.1,2.2435]
[1723996603767,0.943,2672.2,2672.1,2.2435]
[1723996611461,2.81367,2672.2,2672.0,2.21577]
[1723996611671,0.3584,2672.1,2672.0,1.87077]
[1723996614478,0.943,2672.2,2672.1,1.87074]
[1723996616169,2.81367,2672.2,2672.1,1.87074]
[1723996616572,0.943,2672.2,2672.1,1.87074]
[1723996616772,3.39512391,2672.2,2672.1,1.87074]
[1723996617784,2.45212391,2672.2,2672.1,1.87074]
[1723996617975,3.39512391,2672.2,2672.1,1.87074]
[1723996619473,0.943,2672.2,2672.1,1.87074]
[1723996620481,3.39512391,2672.2,2672.1,1.87074]
[1723996622176,5.44687099,2672.4,2672.2,1.87067]
[1723996622481,5.2647624,2672.3,2672.1,1.8707]
[1723996622684,0.943,2672.2,2672.1,1.8707]
[1723996624987,3.3941624,2672.2,2672.1,1.8707]
[1723996625178,0.943,2672.2,2672.1,1.8707]
[1723996625587,3.3941624,2672.2,2672.1,1.8707]
[1723996625891,0.943,2672.2,2672.1,1.8707]
[1723996630978,3.3941624,2672.2,2672.1,1.8707]
[1723996637694,0.943,2672.2,2672.1,1.8707]
[1723996639497,2.81367,2672.2,2672.1,1.87074]
[1723996639695,0.943,2672.2,2672.0,0.344]
[1723996639890,4.3226928,2672.1,2672.0,2.21481]
[1723996640093,1.87074,2672.1,2672.0,2.21481]
[1723996640293,0.943,2672.2,2672.0,2.21481]
[1723996640294,2.81372,2672.2,2672.0,2.21481]
[1723996641196,2.45211832,2672.1,2672.0,2.21481]
[1723996641496,1.87095,2671.8,2671.7,0.3696]
[1723996641697,1.87095,2671.8,2671.7,2.24062]
[1723996641698,2.81395,2671.8,2671.7,2.24062]
[1723996642002,2.81395,2671.8,2671.7,0.3696]
[1723996642796,0.943,2671.8,2671.7,2.24062]
[1723996643098,0.943,2671.8,2671.3,0.96997049]
[1723996643099,3.39548915,2671.8,2671.3,0.96997049]
[1723996643299,0.943,2671.4,2671.3,1.8713]
[1723996643628,3.39548915,2671.4,2671.3,1.8713]
[1723996643900,3.76628915,2671.4,2671.3,1.8713]
[1723996644093,3.76628915,2671.4,2671.3,1.87460393]
[1723996644293,1.3138,2671.4,2671.3,1.87460393]
[1723996644495,3.76628915,2671.4,2671.3,1.87460393]
[1723996645001,5.63751915,2671.4,2671.3,0.00330393]
[1723996645303,6.92823,2671.4,2671.3,0.00330393]
[1723996646095,9.37850841,2671.4,2671.3,0.00330393]
[1723996646404,9.73780841,2671.4,2671.3,0.00330393]
[1723996646594,9.37850841,2671.4,2671.3,0.00330393]
[1723996646795,1.3138,2671.4,2671.3,0.00330393]
[1723996647203,1.3138,2671.4,2671.3,2.24520393]
[1723996647996,1.3138,2671.4,2671.3,0.37390393]
[1723996649597,3.18503,2671.4,2671.3,0.37390393]
[1723996649909,3.18503,2671.4,2671.3,2.58920393]
[1723996649910,1.3138,2671.4,2671.3,2.58920393]
[1723996650198,1.3138,2671.4,2671.3,0.71790393]
[1723996650399,1.3138,2671.4,2671.3,0.00330393]
[1723996650794,2.0052,2671.4,2671.3,0.00330393]
[1723996651197,3.87643,2671.4,2671.3,0.00330393]
[1723996653401,7.61963,2671.4,2671.3,0.00330393]
[1723996656498,3.87643,2671.4,2671.3,0.00330393]
[1723996657099,7.61963,2671.4,2671.3,0.00330393]
[1723996658709,6.92823,2671.4,2671.3,0.00330393]
[1723996660112,2.81423,2671.4,2671.3,0.00330393]
[1723996660332,2.81423,2671.4,2671.3,0.36560393]
[1723996660603,0.943,2671.4,2671.3,2.23690393]
[1723996664305,2.81423,2671.4,2671.3,0.36560393]
[1723996664510,2.81423,2671.4,2671.3,2.23690393]
[1723996664699,2.81423,2671.4,2671.3,0.36560393]
[1723996665012,0.943,2671.4,2671.3,2.23690393]
[1723996666203,2.81423,2671.4,2671.3,0.36560393]
[1723996666406,0.943,2671.4,2671.3,2.23690393]
[1723996667194,2.81423,2671.4,2671.3,0.36560393]
[1723996667603,2.81423,2671.4,2671.3,0.00330393]
[1723996673827,0.943,2671.4,2671.3,1.87460393]
[1723996680221,4.1508,2671.4,2671.3,1.87460393]
[1723996682308,2.45027841,2671.5,2671.3,5.61780393]
[1723996682507,0.943,2671.7,2671.6,3.74218]
[1723996682706,0.943,2671.7,2671.6,7.48538]
[1723996683912,0.943,2671.7,2671.6,5.61429]
[1723996684112,0.943,2671.7,2671.6,5.95929]
[1723996686719,0.943,2671.7,2671.6,1.87109]
[1723996686921,0.943,2671.7,2671.6,2.21129]
[1723996688322,0.943,2671.7,2671.6,0.3402]
[1723996688634,0.943,2671.7,2671.5,5.07892]
[1723996688809,0.943,2671.6,2671.5,1.87116]
[1723996699928,2.45495819,2671.8,2671.4,0.6888]
[1723996700134,2.45495819,2671.8,2671.7,1.87102]
[1723996700431,5.26890819,2671.8,2671.6,1.87105]
[1723996700633,0.943,2671.7,2671.6,1.87105]
[1723996701326,0.943,2671.7,2671.4,0.3515]
[1723996701327,2.45495819,2671.8,2671.7,1.87102]
[1723996701531,2.45495819,2671.8,2671.7,3.74204]
[1723996701724,0.00560905,2671.8,2671.7,7.48524]
[1723996701928,0.00560905,2671.8,2671.7,7.83954]
[1723996704028,0.94860905,2671.8,2671.7,2.22532]
[1723996704758,0.94860905,2671.8,2671.7,1.87102]
[1723996706621,0.94860905,2671.8,2671.7,5.61422]
[1723996707427,0.94860905,2671.8,2671.7,1.87102]
[1723996707631,0.94860905,2671.8,2671.7,5.61422]
[1723996708430,0.94860905,2671.8,2671.7,1.87102]
[1723996708634,0.94860905,2671.8,2671.7,5.61422]
[1723996708831,0.94860905,2671.8,2671.7,1.87102]
[1723996710031,0.94860905,2671.8,2671.7,5.61422]
[1723996711136,0.00560905,2671.8,2671.7,7.48524]
[1723996712527,0.00560905,2671.8,2671.7,3.74204]
[1723996712726,0.00560905,2671.8,2671.7,7.48524]
[1723996712927,0.00560905,2671.8,2671.7,3.74204]
[1723996713432,9.05e-06,2671.8,2671.7,10.29926]
[1723996717133,9.05e-06,2671.8,2671.7,15.29926]
[1723996717958,9.05e-06,2671.8,2671.7,10.29926]
[1723996718241,9.05e-06,2671.8,2671.7,15.65326]
[1723996719142,9.05e-06,2671.8,2671.7,10.65326]
[1723996719333,9.05e-06,2671.8,2671.7,15.65326]
[1723996719533,9.05e-06,2671.8,2671.7,10.65326]
[1723996719835,9.05e-06,2671.8,2671.7,15.65326]
[1723996726440,0.943,2672.2,2672.1,1.87074]
[1723996727049,0.00431099,2672.4,2672.3,1.8706]
[1723996727347,0.00431099,2672.4,2672.3,2.8136]
[1723996727543,0.00431099,2672.4,2672.3,11.6344]
[1723996728146,0.00431099,2672.4,2672.3,9.7638]
[1723996728342,0.00431099,2672.4,2672.3,5.0784]
[1723996728551,0.00431099,2672.4,2672.3,8.8208]
[1723996728745,0.00431099,2672.4,2672.3,5.0784]
[1723996729750,0.00431099,2672.4,2672.3,5.613]
[1723996729948,0.94731099,2672.4,2672.3,1.8706]
[1723996738768,0.94731099,2672.4,2672.2,1.87064]
[1723996738955,0.943,2672.2,2672.1,0.3421]
[1723996739155,0.943,2672.2,2672.1,2.21284]
[1723996743354,0.94731099,2672.4,2672.3,1.8706]
[1723996746070,0.00431099,2672.4,2672.3,1.8706]
[1723996747570,0.00431099,2672.4,2672.3,2.2241]
[1723996760582,0.94731099,2672.4,2672.3,2.2241]
[1723996771288,3.39666013,2672.4,2672.3,2.2241]
[1723996773181,3.39666013,2672.4,2672.3,1.8706]
[1723996778990,3.39666013,2672.4,2672.1,4.52394778]
[1723996779194,0.943,2672.2,2672.1,6.39468778]
[1723996779591,0.943,2672.2,2672.1,5.42064]
[1723996779991,3.39234914,2672.2,2672.1,5.42064]
[1723996781503,3.39234914,2672.2,2672.1,2.21284]
[1723996783696,5.26304914,2672.2,2672.0,5.43627]
[1723996783898,3.17574,2672.1,2672.0,3.2078]
[1723996784198,8.83291914,2672.1,2671.9,1.87083]
[1723996784394,6.96214914,2672.1,2671.9,1.87081]
[1723996785204,4.32022914,2672.0,2671.7,3.18103778]
[1723996785393,1.2948,2671.9,2671.7,2.20699]
[1723996786296,1.2948,2671.9,2671.8,1.87095]
[1723996786503,3.2078,2672.0,2671.9,1.87088]
[1723996786698,4.1508,2672.0,2671.9,1.87088]
[1723996786905,2.44934914,2672.3,2671.9,9.76408]
[1723996787206,2.44934914,2672.3,2672.2,1.87067]
[1723996788193,2.44934914,2672.3,2672.2,2.24217]
[1723996791706,0.94731099,2672.4,2672.3,1.8706]
[1723996791707,3.39666013,2672.4,2672.3,1.8706]
[1723996791902,0.94731099,2672.4,2672.3,1.8706]
[1723996792103,0.94731099,2672.4,2672.3,2.2364]
[1723996792409,3.39977288,2672.4,2672.3,2.2364]
[1723996792801,0.94731099,2672.4,2672.3,2.2364]
[1723996794114,0.00431099,2672.4,2672.3,2.2364]
[1723996796912,0.00431099,2672.4,2672.3,4.107]
[1723996797115,0.00560905,2672.6,2672.5,5.61138]
[1723996797304,2.45238275,2673.1,2673.0,1.87011]
[1723996797505,2.45238275,2673.2,2673.1,1.87004]
[1723996797912,3.39538275,2673.2,2673.1,1.87004]
[1723996798218,3.40019831,2673.2,2673.1,1.87004]
[1723996798510,0.94781556,2673.2,2673.1,1.87004]
[1723996800432,0.00481556,2673.2,2673.1,1.87004]
[1723996804408,2.45459716,2673.4,2673.3,1.8699]
[1723996805420,2.45935452,2673.4,2673.3,1.87294637]
[1723996806423,2.45935452,2673.4,2673.3,3.74284637]
[1723996806719,0.01036641,2673.4,2673.3,3.74284637]
[1723996806921,3.2078,2674.1,2673.3,1.87294637]
[1723996807121,2.44898811,2674.3,2674.1,1.86931]
[1723996807517,6.18818811,2674.3,2674.0,1.86935]
[1723996807717,2.44898811,2674.3,2674.0,1.86935]
[1723996807911,2.4536593,2674.3,2674.1,1.86932]
[1723996808112,2.4536593,2674.3,2674.0,1.86936]
[1723996808321,4.3228693,2674.3,2674.0,1.86936]
[1723996808514,2.4536593,2674.3,2674.0,1.86936]
[1723996809121,2.4536593,2674.3,2674.1,1.86933]
[1723996809323,2.4536593,2674.3,2674.2,1.86927]
[1723996809824,6.1928593,2674.3,2674.2,1.86927]
[1723996810921,2.4536593,2674.3,2674.2,3.73854]
[1723996811129,2.4536593,2674.3,2674.2,10.68554]
[1723996811824,3.74387119,2674.3,2673.9,0.3668]
[1723996812026,1.87390119,2674.3,2674.0,1.86938]
[1723996812215,5.08170119,2674.3,2674.0,1.86938]
[1723996812527,3.21247119,2674.3,2674.0,1.86937]
[1723996812716,5.08168119,2674.3,2674.0,1.86937]
[1723996813115,5.08168119,2674.3,2674.1,1.86934]
[1723996813315,5.08168119,2674.3,2674.0,1.86938]
[1723996813624,1.87388119,2674.3,2674.1,1.86934]
[1723996814022,1.87388119,2674.3,2673.9,0.3668]
[1723996814023,0.00467119,2674.3,2674.2,1.86927]
[1723996815126,0.00467119,2674.3,2674.2,5.60847]
[1723996818113,0.00467119,2674.3,2674.2,1.86927]
[1723996818313,0.00467119,2674.3,2674.2,5.60847]
[1723996818529,0.00467119,2674.3,2674.2,1.86927]
[1723996818718,0.00467119,2674.3,2674.2,5.60847]
[1723996820956,0.00467119,2674.3,2674.2,1.86927]
[1723996821117,3.74387119,2674.3,2673.9,3.5746]
[1723996821318,0.3465,2674.2,2674.1,1.86934]
[1723996821630,0.3412,2674.2,2674.1,1.86934]
[1723996822330,0.3412,2674.2,2674.0,1.86937]
[1723996822640,0.3412,2674.2,2673.9,3.5746]
[1723996822641,4.0812,2674.2,2673.6,3.2078]
[1723996822833,4.0812,2674.2,2673.4,0.3389]
[1723996822834,3.2078,2674.0,2673.4,0.3389]
[1723996823025,2.23079,2673.9,2673.4,0.3389]
[1723996823233,0.3613,2673.9,2673.4,2.2087]
[1723996823427,1.86963,2673.7,2673.4,2.2087]
[1723996823639,0.3462,2673.6,2673.5,1.86976]
[1723996824024,4.0862,2673.6,2673.3,0.00304637]
[1723996824229,0.3462,2673.6,2673.3,0.00304637]
[1723996824430,0.3462,2673.6,2673.4,1.86981]
[1723996824831,4.087,2673.6,2673.4,1.86981]
[1723996825132,0.3462,2673.6,2673.4,1.86981]
[1723996825335,4.087,2673.6,2673.4,1.86981]
[1723996825538,4.087,2673.6,2673.3,1.87290637]
[1723996825720,2.21592,2673.6,2673.3,1.87290637]
[1723996826633,0.3462,2673.6,2673.3,1.87290637]
[1723996827530,0.3462,2673.6,2673.4,1.86979]
[1723996827935,4.087,2673.6,2673.4,1.86979]
[1723996828138,0.3462,2673.6,2673.4,1.86979]
[1723996828433,0.3462,2673.6,2673.5,1.86976]
[1723996828629,4.0862,2673.6,2673.4,1.86978]
[1723996828835,0.3462,2673.6,2673.4,1.86978]
[1723996829337,0.3462,2673.6,2673.4,1.86981]
[1723996829533,2.2159,2673.6,2673.3,1.87291637]
[1723996830038,0.3462,2673.6,2673.3,1.87291637]
[1723996830337,0.3462,2673.6,2673.4,1.8698]
[1723996830930,0.3462,2673.6,2673.3,0.00304637]
[1723996831334,0.3462,2673.6,2673.4,1.86977]
[1723996832140,0.3462,2673.6,2673.5,1.86976]
[1723996832641,4.0862,2673.6,2673.4,1.86979]
[1723996832936,0.3462,2673.6,2673.5,1.86976]
[1723996833327,4.0862,2673.6,2673.5,1.86976]
[1723996834239,4.0862,2673.6,2673.3,0.00304637]
[1723996834539,0.3462,2673.6,2673.5,1.86976]
[1723996834938,4.0862,2673.6,2673.5,1.86976]
[1723996835137,5.9559,2673.6,2673.3,0.00304637]
[1723996835344,0.3462,2673.6,2673.4,1.86981]
[1723996835836,2.21589,2673.6,2673.4,1.86981]